[Event "Betsys MČR v online bleskovém šachu 2021"]
[Site "Chess.com"]
[Date "2021.04.17"]
[Round "11"]
[White "Tretrik"]
[Black "HonzaRubes95"]
[Result "0-1"]
[WhiteElo "2079"]
[BlackElo "2464"]
[TimeControl "180+1"]
[EndTime "10:50:41 PDT"]
[Termination "Uživatel HonzaRubes95 zvítězil po vzdání soupeře"]

1. e4 {[%clk 0:03:00.9]} 1... c5 {[%clk 0:02:59.4]} 2. Nf3 {[%clk 0:03:00.6]}
2... Nc6 {[%clk 0:02:58.9]} 3. Bb5 {[%clk 0:02:59.5]} 3... e6 {[%clk 0:02:56.2]}
4. O-O {[%clk 0:02:55.8]} 4... Nge7 {[%clk 0:02:55.4]} 5. c3 {[%clk 0:02:55.7]}
5... a6 {[%clk 0:02:48.8]} 6. Ba4 {[%clk 0:02:55.6]} 6... b5 {[%clk 0:02:42.5]}
7. Bc2 {[%clk 0:02:55.5]} 7... Bb7 {[%clk 0:02:42.4]} 8. Qe2 {[%clk 0:02:42.9]}
8... Ng6 {[%clk 0:02:41.8]} 9. d4 {[%clk 0:02:38.3]} 9... cxd4 {[%clk
0:02:38.5]} 10. cxd4 {[%clk 0:02:38.1]} 10... Be7 {[%clk 0:02:37.8]} 11. a4
{[%clk 0:02:32.2]} 11... O-O {[%clk 0:02:27.4]} 12. Be3 {[%clk 0:02:14.8]} 12...
Nb4 {[%clk 0:02:24.4]} 13. Nc3 {[%clk 0:02:06.8]} 13... Nxc2 {[%clk 0:02:23.5]}
14. Qxc2 {[%clk 0:02:06.5]} 14... b4 {[%clk 0:02:24]} 15. Ne2 {[%clk 0:02:05.2]}
15... Rc8 {[%clk 0:02:05.8]} 16. Qd2 {[%clk 0:02:03.6]} 16... Bxe4 {[%clk
0:02:04.6]} 17. Ne1 {[%clk 0:01:54.2]} 17... a5 {[%clk 0:02:01.4]} 18. Ng3
{[%clk 0:01:53.6]} 18... Bb7 {[%clk 0:02:00]} 19. Nd3 {[%clk 0:01:52.4]} 19...
d6 {[%clk 0:01:58.5]} 20. Rfe1 {[%clk 0:01:48.8]} 20... Qd7 {[%clk 0:01:55.4]}
21. Rad1 {[%clk 0:01:48]} 21... Rc7 {[%clk 0:01:53.6]} 22. Qe2 {[%clk
0:01:41.6]} 22... Rfc8 {[%clk 0:01:47.5]} 23. Qh5 {[%clk 0:01:40.6]} 23... Qxa4
{[%clk 0:01:34.6]} 24. Ra1 {[%clk 0:01:38]} 24... Qc2 {[%clk 0:01:30.4]} 25.
Red1 {[%clk 0:01:35]} 25... Bd5 {[%clk 0:01:17.5]} 26. h3 {[%clk 0:00:58.7]}
26... a4 {[%clk 0:01:15]} 27. Nxb4 {[%clk 0:00:54.2]} 27... Qb3 {[%clk
0:01:15.4]} 28. Nxd5 {[%clk 0:00:53.3]} 28... exd5 {[%clk 0:01:15.5]} 29. Nf5
{[%clk 0:00:50.7]} 29... Bf8 {[%clk 0:01:14.1]} 30. Ra3 {[%clk 0:00:42.7]} 30...
Qxb2 {[%clk 0:01:14]} 31. Rxa4 {[%clk 0:00:42.1]} 31... Rb8 {[%clk 0:00:45.2]}
32. Qf3 {[%clk 0:00:41.3]} 32... Qc2 {[%clk 0:00:35.9]} 33. Raa1 {[%clk
0:00:33.3]} 33... Qe4 {[%clk 0:00:33.7]} 34. Qh5 {[%clk 0:00:22]} 34... Rcb7
{[%clk 0:00:31.1]} 35. Ng3 {[%clk 0:00:20.4]} 35... Qe6 {[%clk 0:00:26.4]} 36.
Re1 {[%clk 0:00:19.5]} 36... Qf6 {[%clk 0:00:22.8]} 37. Qxd5 {[%clk 0:00:17.5]}
37... h6 {[%clk 0:00:21.8]} 38. Kh2 {[%clk 0:00:16.4]} 38... Rb5 {[%clk
0:00:21.1]} 39. Qe4 {[%clk 0:00:15.6]} 39... Rb2 {[%clk 0:00:20.7]} 40. Rac1
{[%clk 0:00:14.5]} 40... Ra2 {[%clk 0:00:15.5]} 41. Nf5 {[%clk 0:00:14.5]} 41...
Rab2 {[%clk 0:00:11.6]} 42. Qf3 {[%clk 0:00:14.9]} 42... R2b5 {[%clk 0:00:10.5]}
43. g4 {[%clk 0:00:14.2]} 43... d5 {[%clk 0:00:08.6]} 44. Rc7 {[%clk 0:00:13.7]}
44... Bd6+ {[%clk 0:00:06.9]} 45. Nxd6 {[%clk 0:00:09.1]} 45... Qxf3 {[%clk
0:00:06.2]} 46. Nxb5 {[%clk 0:00:07.5]} 46... Rxb5 {[%clk 0:00:07.1]} 47. Rec1
{[%clk 0:00:07.5]} 47... Kh7 {[%clk 0:00:07.4]} 48. R1c2 {[%clk 0:00:07.2]}
48... Rb1 {[%clk 0:00:07.6]} 49. Rc1 {[%clk 0:00:07.6]} 49... Rxc1 {[%clk
0:00:07.6]} 50. Rxc1 {[%clk 0:00:08.5]} 50... Nf4 {[%clk 0:00:08]} 51. Bxf4
{[%clk 0:00:07.8]} 51... Qxf4+ {[%clk 0:00:08.9]} 52. Kg2 {[%clk 0:00:08]} 52...
Qxc1 {[%clk 0:00:09.8]} 0-1

[Event "Betsys MČR v online bleskovém šachu 2021"]
[Site "Chess.com"]
[Date "2021.04.17"]
[Round "11"]
[White "kecalk"]
[Black "koky_3"]
[Result "1/2-1/2"]
[WhiteElo "2135"]
[BlackElo "2051"]
[TimeControl "180+1"]
[EndTime "10:50:44 PDT"]
[Termination "Remíza – nedostatek materiálu"]

1. c4 {[%clk 0:03:00.9]} 1... c5 {[%clk 0:02:54.9]} 2. Nf3 {[%clk 0:03:00.1]}
2... Nc6 {[%clk 0:02:54.5]} 3. d4 {[%clk 0:03:00]} 3... cxd4 {[%clk 0:02:52.6]}
4. Nxd4 {[%clk 0:03:00.9]} 4... e6 {[%clk 0:02:52.7]} 5. Nc3 {[%clk 0:03:00.1]}
5... a6 {[%clk 0:02:45.9]} 6. a3 {[%clk 0:02:53.8]} 6... Nf6 {[%clk 0:02:45.7]}
7. e4 {[%clk 0:02:47.3]} 7... Bc5 {[%clk 0:02:21.4]} 8. Nb3 {[%clk 0:02:40.3]}
8... Be7 {[%clk 0:02:18.6]} 9. Be2 {[%clk 0:02:37.4]} 9... O-O {[%clk
0:02:18.1]} 10. O-O {[%clk 0:02:36.4]} 10... d6 {[%clk 0:02:18.1]} 11. Be3
{[%clk 0:02:35.3]} 11... b6 {[%clk 0:02:16.3]} 12. f3 {[%clk 0:02:32.7]} 12...
Bb7 {[%clk 0:02:15.4]} 13. Rc1 {[%clk 0:02:29.3]} 13... Rc8 {[%clk 0:02:14.4]}
14. Nd4 {[%clk 0:02:28.7]} 14... Ne5 {[%clk 0:02:11.5]} 15. b3 {[%clk
0:01:53.2]} 15... Qc7 {[%clk 0:02:09]} 16. Qd2 {[%clk 0:01:52.3]} 16... Rfd8
{[%clk 0:02:06.8]} 17. Rfd1 {[%clk 0:01:51.9]} 17... Qb8 {[%clk 0:02:06.5]} 18.
Bf1 {[%clk 0:01:38.8]} 18... d5 {[%clk 0:02:03.1]} 19. cxd5 {[%clk 0:01:38.1]}
19... exd5 {[%clk 0:02:02.7]} 20. Nxd5 {[%clk 0:01:36.9]} 20... Nxd5 {[%clk
0:01:59.9]} 21. exd5 {[%clk 0:01:34.5]} 21... Bxd5 {[%clk 0:01:25.3]} 22. Bxa6
{[%clk 0:01:19.6]} 22... Rxc1 {[%clk 0:01:24]} 23. Qxc1 {[%clk 0:01:17]} 23...
Qa8 {[%clk 0:01:12.3]} 24. Nf5 {[%clk 0:01:07.6]} 24... Bf8 {[%clk 0:01:08.4]}
25. Bxb6 {[%clk 0:00:53.1]} 25... Rb8 {[%clk 0:00:54.2]} 26. Bc7 {[%clk
0:00:45.4]} 26... Nxf3+ {[%clk 0:00:27.2]} 27. gxf3 {[%clk 0:00:38.2]} 27...
Bxf3 {[%clk 0:00:26.9]} 28. Bxb8 {[%clk 0:00:28.5]} 28... Qxb8 {[%clk
0:00:24.6]} 29. Rf1 {[%clk 0:00:23.7]} 29... Be4 {[%clk 0:00:19.3]} 30. Qf4
{[%clk 0:00:16.7]} 30... Bc5+ {[%clk 0:00:17.2]} 31. Ne3 {[%clk 0:00:07.3]}
31... Qxf4 {[%clk 0:00:15.4]} 32. Rxf4 {[%clk 0:00:08.2]} 32... Bxe3+ {[%clk
0:00:15.5]} 33. Rf2 {[%clk 0:00:09.1]} 33... Kf8 {[%clk 0:00:13.5]} 34. Kf1
{[%clk 0:00:07.3]} 34... Bxf2 {[%clk 0:00:13.3]} 35. Kxf2 {[%clk 0:00:08.2]}
35... Ke7 {[%clk 0:00:13.2]} 36. Ke3 {[%clk 0:00:08.5]} 36... Bd5 {[%clk
0:00:13.1]} 37. b4 {[%clk 0:00:07.9]} 37... Kd6 {[%clk 0:00:13.1]} 38. Kd4
{[%clk 0:00:07.6]} 38... f5 {[%clk 0:00:12.5]} 39. Be2 {[%clk 0:00:07.9]} 39...
g5 {[%clk 0:00:12]} 40. a4 {[%clk 0:00:08.2]} 40... g4 {[%clk 0:00:11.3]} 41. a5
{[%clk 0:00:07.5]} 41... h5 {[%clk 0:00:09.8]} 42. b5 {[%clk 0:00:07.7]} 42...
h4 {[%clk 0:00:09.2]} 43. b6 {[%clk 0:00:05.7]} 43... Bb7 {[%clk 0:00:08.3]} 44.
a6 {[%clk 0:00:05.2]} 44... Kc6 {[%clk 0:00:07.8]} 45. axb7 {[%clk 0:00:04.2]}
45... Kxb7 {[%clk 0:00:07]} 46. Ke5 {[%clk 0:00:04.7]} 46... g3 {[%clk
0:00:05.1]} 47. hxg3 {[%clk 0:00:04.5]} 47... hxg3 {[%clk 0:00:04.7]} 48. Bf3+
{[%clk 0:00:05.4]} 48... Kxb6 {[%clk 0:00:04.7]} 49. Kxf5 {[%clk 0:00:05.5]}
49... g2 {[%clk 0:00:04.9]} 50. Bxg2 {[%clk 0:00:06.4]} 1/2-1/2

[Event "Betsys MČR v online bleskovém šachu 2021"]
[Site "Chess.com"]
[Date "2021.04.17"]
[Round "11"]
[White "Pokemonchess"]
[Black "Rozmetal"]
[Result "0-1"]
[WhiteElo "1949"]
[BlackElo "2149"]
[TimeControl "180+1"]
[EndTime "10:50:44 PDT"]
[Termination "Uživatel Rozmetal zvítězil po vzdání soupeře"]

1. e4 {[%clk 0:03:00.9]} 1... c5 {[%clk 0:02:59.4]} 2. Nf3 {[%clk 0:03:00.6]}
2... e5 {[%clk 0:02:56.7]} 3. Nxe5 {[%clk 0:02:55.3]} 3... d6 {[%clk 0:02:55.8]}
4. Nf3 {[%clk 0:02:53.6]} 4... Nf6 {[%clk 0:02:54.9]} 5. Nc3 {[%clk 0:02:51.8]}
5... Be7 {[%clk 0:02:53.8]} 6. Bc4 {[%clk 0:02:48.9]} 6... O-O {[%clk
0:02:53.8]} 7. h3 {[%clk 0:02:47.3]} 7... Nxe4 {[%clk 0:02:51.8]} 8. Nxe4 {[%clk
0:02:37.1]} 8... d5 {[%clk 0:02:51.6]} 9. Bd3 {[%clk 0:02:30.5]} 9... c4 {[%clk
0:02:42.3]} 10. Bxc4 {[%clk 0:02:28.5]} 10... dxe4 {[%clk 0:02:39.5]} 11. Nh2
{[%clk 0:02:26.4]} 11... Nc6 {[%clk 0:02:37.5]} 12. O-O {[%clk 0:02:24.8]} 12...
Bd6 {[%clk 0:02:31.5]} 13. Ng4 {[%clk 0:02:20.1]} 13... Qh4 {[%clk 0:02:28.9]}
14. d3 {[%clk 0:02:14.2]} 14... Ne5 {[%clk 0:02:15.2]} 15. Nxe5 {[%clk
0:02:01.5]} 15... Bxe5 {[%clk 0:02:16.1]} 16. f4 {[%clk 0:01:44.4]} 16... exf3
{[%clk 0:02:10.7]} 17. Qxf3 {[%clk 0:01:43.2]} 17... Be6 {[%clk 0:02:05.7]} 18.
Bb3 {[%clk 0:01:32.5]} 18... Rac8 {[%clk 0:01:57.2]} 19. c3 {[%clk 0:01:17.7]}
19... Bxb3 {[%clk 0:01:38.6]} 20. axb3 {[%clk 0:01:18.6]} 20... a6 {[%clk
0:01:38.4]} 21. Bf4 {[%clk 0:01:13.9]} 21... Bxf4 {[%clk 0:01:31.1]} 22. Qxf4
{[%clk 0:01:13.3]} 22... Qd8 {[%clk 0:01:31.4]} 23. Kh1 {[%clk 0:01:07.9]} 23...
Qxd3 {[%clk 0:01:29.9]} 24. Rad1 {[%clk 0:00:59.4]} 24... Qc2 {[%clk 0:01:29]}
25. Rd7 {[%clk 0:00:57.3]} 25... Qxb3 {[%clk 0:01:27.5]} 26. Rf2 {[%clk
0:00:54.7]} 26... Rcd8 {[%clk 0:01:20.3]} 27. Qxf7+ {[%clk 0:00:35.4]} 27...
Qxf7 {[%clk 0:01:18]} 28. Rfxf7 {[%clk 0:00:34.5]} 28... Rxd7 {[%clk 0:00:58.2]}
29. Rxd7 {[%clk 0:00:33.1]} 29... Rf7 {[%clk 0:00:58]} 30. Rd2 {[%clk
0:00:30.1]} 30... Rc7 {[%clk 0:00:56.2]} 31. Kh2 {[%clk 0:00:29.6]} 31... Kf7
{[%clk 0:00:53.7]} 32. Kg3 {[%clk 0:00:29.3]} 32... Ke6 {[%clk 0:00:51.4]} 33.
Kf4 {[%clk 0:00:28.8]} 33... Rc4+ {[%clk 0:00:45.9]} 34. Ke3 {[%clk 0:00:25.9]}
34... b5 {[%clk 0:00:45.6]} 35. Rd1 {[%clk 0:00:22.7]} 35... b4 {[%clk 0:00:42]}
36. cxb4 {[%clk 0:00:20.7]} 36... Rxb4 {[%clk 0:00:42.9]} 37. Rd2 {[%clk
0:00:21.2]} 37... Rb3+ {[%clk 0:00:42.3]} 38. Ke2 {[%clk 0:00:20.6]} 38... Ke5
{[%clk 0:00:41.4]} 39. Rc2 {[%clk 0:00:20.8]} 39... g5 {[%clk 0:00:39.3]} 40.
Rd2 {[%clk 0:00:21]} 40... h5 {[%clk 0:00:39.1]} 41. Kf2 {[%clk 0:00:20.6]}
41... g4 {[%clk 0:00:37.7]} 42. hxg4 {[%clk 0:00:19.8]} 42... hxg4 {[%clk
0:00:38.6]} 43. Rc2 {[%clk 0:00:20.1]} 43... g3+ {[%clk 0:00:36.6]} 44. Ke2
{[%clk 0:00:20.2]} 44... Ke4 {[%clk 0:00:36.7]} 45. Rd2 {[%clk 0:00:20.5]} 45...
a5 {[%clk 0:00:33.3]} 46. Rc2 {[%clk 0:00:20.7]} 46... Kd4 {[%clk 0:00:33]} 47.
Rd2+ {[%clk 0:00:20.7]} 47... Kc4 {[%clk 0:00:31.9]} 48. Rc2+ {[%clk 0:00:20.8]}
48... Kd4 {[%clk 0:00:32.1]} 49. Rd2+ {[%clk 0:00:20.3]} 49... Ke4 {[%clk
0:00:32.5]} 50. Rc2 {[%clk 0:00:20.3]} 50... a4 {[%clk 0:00:31.9]} 51. Rd2
{[%clk 0:00:20.5]} 51... Rb4 {[%clk 0:00:27.9]} 52. Rc2 {[%clk 0:00:20.4]} 52...
Kf4 {[%clk 0:00:26]} 53. Rd2 {[%clk 0:00:20.5]} 53... Re4+ {[%clk 0:00:25.1]}
54. Kf1 {[%clk 0:00:20.5]} 54... Ke3 {[%clk 0:00:22.6]} 55. Re2+ {[%clk
0:00:20.1]} 55... Kd3 {[%clk 0:00:22.7]} 56. Rxe4 {[%clk 0:00:19.8]} 56... Kxe4
{[%clk 0:00:22.3]} 57. Ke2 {[%clk 0:00:20.4]} 57... Kd4 {[%clk 0:00:21.7]} 58.
Kf3 {[%clk 0:00:20.6]} 58... Kd3 {[%clk 0:00:21]} 59. Kxg3 {[%clk 0:00:20.4]}
59... Kc2 {[%clk 0:00:21.4]} 60. Kf4 {[%clk 0:00:20.7]} 60... Kxb2 {[%clk
0:00:21.7]} 61. g4 {[%clk 0:00:21.3]} 61... a3 {[%clk 0:00:22.6]} 62. g5 {[%clk
0:00:22.2]} 62... a2 {[%clk 0:00:23.4]} 63. g6 {[%clk 0:00:23.1]} 63... a1=Q
{[%clk 0:00:24.2]} 64. Kg5 {[%clk 0:00:23.2]} 64... Qa8 {[%clk 0:00:20.8]} 65.
g7 {[%clk 0:00:22.2]} 65... Qg8 {[%clk 0:00:21.1]} 66. Kf6 {[%clk 0:00:22.2]}
66... Kc3 {[%clk 0:00:20.9]} 0-1

[Event "Betsys MČR v online bleskovém šachu 2021"]
[Site "Chess.com"]
[Date "2021.04.17"]
[Round "11"]
[White "Krvelacny_krecek"]
[Black "mysacek1414"]
[Result "0-1"]
[WhiteElo "2342"]
[BlackElo "1926"]
[TimeControl "180+1"]
[EndTime "10:50:46 PDT"]
[Termination "Uživatel mysacek1414 zvítězil na čas"]

1. d4 {[%clk 0:03:00.9]} 1... Nf6 {[%clk 0:02:59.5]} 2. c4 {[%clk 0:03:00.4]}
2... c5 {[%clk 0:03:00]} 3. d5 {[%clk 0:03:00.3]} 3... b5 {[%clk 0:03:00.3]} 4.
cxb5 {[%clk 0:03:00.6]} 4... a6 {[%clk 0:03:01]} 5. bxa6 {[%clk 0:03:01]} 5...
e6 {[%clk 0:03:01.6]} 6. Nc3 {[%clk 0:02:58.7]} 6... exd5 {[%clk 0:03:01.8]} 7.
Nxd5 {[%clk 0:02:58.1]} 7... Be7 {[%clk 0:03:02.3]} 8. g3 {[%clk 0:02:49.3]}
8... O-O {[%clk 0:02:57]} 9. Bg2 {[%clk 0:02:43.5]} 9... Rxa6 {[%clk 0:02:56.9]}
10. Nf3 {[%clk 0:02:33.5]} 10... Nxd5 {[%clk 0:02:44.3]} 11. Qxd5 {[%clk
0:02:32.8]} 11... Rd6 {[%clk 0:02:44.5]} 12. Qb3 {[%clk 0:02:27.5]} 12... Rb6
{[%clk 0:02:39.8]} 13. Qc2 {[%clk 0:02:26.6]} 13... Nc6 {[%clk 0:02:36.5]} 14.
O-O {[%clk 0:02:22.5]} 14... d5 {[%clk 0:02:33]} 15. Bf4 {[%clk 0:02:11.4]}
15... Ba6 {[%clk 0:02:26.8]} 16. b3 {[%clk 0:02:01.7]} 16... Nb4 {[%clk
0:02:22.4]} 17. Qd2 {[%clk 0:02:00.3]} 17... Bf6 {[%clk 0:02:20.7]} 18. Rac1
{[%clk 0:01:55.5]} 18... c4 {[%clk 0:02:05.4]} 19. Be5 {[%clk 0:01:51.9]} 19...
cxb3 {[%clk 0:01:56.6]} 20. axb3 {[%clk 0:01:50.9]} 20... Re8 {[%clk 0:01:51.3]}
21. Bd4 {[%clk 0:01:36.3]} 21... Rb7 {[%clk 0:01:25.9]} 22. Bxf6 {[%clk
0:01:28.8]} 22... Qxf6 {[%clk 0:01:25.2]} 23. Nd4 {[%clk 0:01:28.7]} 23... Qb6
{[%clk 0:00:37.8]} 24. Rfe1 {[%clk 0:01:23]} 24... Rbe7 {[%clk 0:00:36.8]} 25.
Bf3 {[%clk 0:01:05.4]} 25... h6 {[%clk 0:00:35.3]} 26. Rc3 {[%clk 0:00:54.1]}
26... Bb7 {[%clk 0:00:25.4]} 27. e3 {[%clk 0:00:52.3]} 27... Nc6 {[%clk
0:00:17.8]} 28. Nxc6 {[%clk 0:00:47.8]} 28... Bxc6 {[%clk 0:00:18]} 29. Rec1
{[%clk 0:00:43.1]} 29... Bb7 {[%clk 0:00:16.6]} 30. Qd4 {[%clk 0:00:34.4]} 30...
Qxd4 {[%clk 0:00:14.5]} 31. exd4 {[%clk 0:00:34.5]} 31... Re1+ {[%clk
0:00:14.6]} 32. Rxe1 {[%clk 0:00:29.2]} 32... Rxe1+ {[%clk 0:00:14.4]} 33. Kg2
{[%clk 0:00:29.5]} 33... Rb1 {[%clk 0:00:14.9]} 34. h4 {[%clk 0:00:25.6]} 34...
Kf8 {[%clk 0:00:14.6]} 35. Be2 {[%clk 0:00:21.2]} 35... Ke8 {[%clk 0:00:13.5]}
36. Kf3 {[%clk 0:00:21.2]} 36... Kd8 {[%clk 0:00:13.5]} 37. Ke3 {[%clk
0:00:20.9]} 37... Rb2 {[%clk 0:00:12.6]} 38. Bd3 {[%clk 0:00:17.2]} 38... f6
{[%clk 0:00:10.9]} 39. Bc2 {[%clk 0:00:16.8]} 39... Kd7 {[%clk 0:00:07.4]} 40.
Kd2 {[%clk 0:00:16.9]} 40... Ra2 {[%clk 0:00:06.9]} 41. b4 {[%clk 0:00:15.8]}
41... Ra8 {[%clk 0:00:06]} 42. Rc5 {[%clk 0:00:12.3]} 42... Re8 {[%clk
0:00:05.7]} 43. Bb3 {[%clk 0:00:12.2]} 43... Kd6 {[%clk 0:00:05.9]} 44. b5
{[%clk 0:00:11.3]} 44... Re4 {[%clk 0:00:05.4]} 45. Kd3 {[%clk 0:00:10.3]} 45...
Re1 {[%clk 0:00:05.8]} 46. b6 {[%clk 0:00:09.1]} 46... Rb1 {[%clk 0:00:05.7]}
47. Kc2 {[%clk 0:00:08.7]} 47... Rf1 {[%clk 0:00:05.3]} 48. Rc7 {[%clk
0:00:08.7]} 48... Ba6 {[%clk 0:00:05.2]} 49. Kc3 {[%clk 0:00:08.1]} 49... Rxf2
{[%clk 0:00:05.1]} 50. Rxg7 {[%clk 0:00:07.8]} 50... Rf3+ {[%clk 0:00:04.5]} 51.
Kb4 {[%clk 0:00:08]} 51... Kc6 {[%clk 0:00:02.3]} 0-1

[Event "Betsys MČR v online bleskovém šachu 2021"]
[Site "Chess.com"]
[Date "2021.04.17"]
[Round "11"]
[White "sipos88"]
[Black "Bavorak15"]
[Result "0-1"]
[WhiteElo "1854"]
[BlackElo "1640"]
[TimeControl "180+1"]
[EndTime "10:50:46 PDT"]
[Termination "Uživatel Bavorak15 zvítězil po vzdání soupeře"]

1. e4 {[%clk 0:03:00.9]} 1... d5 {[%clk 0:02:59.8]} 2. exd5 {[%clk 0:02:59.8]}
2... Qxd5 {[%clk 0:03:00.7]} 3. d4 {[%clk 0:02:59.7]} 3... e5 {[%clk 0:03:00.4]}
4. dxe5 {[%clk 0:02:54]} 4... Qxd1+ {[%clk 0:03:01.3]} 5. Kxd1 {[%clk
0:02:54.3]} 5... Bc5 {[%clk 0:02:59.2]} 6. Be3 {[%clk 0:02:41.2]} 6... Bxe3
{[%clk 0:02:59.1]} 7. fxe3 {[%clk 0:02:41.3]} 7... Bf5 {[%clk 0:02:59.8]} 8. Bd3
{[%clk 0:02:38.1]} 8... Bg4+ {[%clk 0:02:56.3]} 9. Nf3 {[%clk 0:02:36.4]} 9...
Nc6 {[%clk 0:02:56.4]} 10. h3 {[%clk 0:02:24.1]} 10... Bxf3+ {[%clk 0:02:51.6]}
11. gxf3 {[%clk 0:02:24]} 11... Nxe5 {[%clk 0:02:51.8]} 12. Be4 {[%clk
0:02:22.5]} 12... c6 {[%clk 0:02:51.4]} 13. Ke2 {[%clk 0:02:20.4]} 13... O-O-O
{[%clk 0:02:46.7]} 14. Nc3 {[%clk 0:02:18.7]} 14... Nf6 {[%clk 0:02:46.2]} 15.
Bf5+ {[%clk 0:02:17.4]} 15... Kc7 {[%clk 0:02:46.5]} 16. Rad1 {[%clk 0:02:15.7]}
16... g6 {[%clk 0:02:36.7]} 17. Bd3 {[%clk 0:02:05.6]} 17... Nh5 {[%clk
0:02:22.2]} 18. Kf2 {[%clk 0:01:54.6]} 18... Rd6 {[%clk 0:02:13.9]} 19. Be2
{[%clk 0:01:46.9]} 19... Nf6 {[%clk 0:01:50.8]} 20. Rxd6 {[%clk 0:01:44.3]}
20... Kxd6 {[%clk 0:01:51.7]} 21. Rd1+ {[%clk 0:01:43.9]} 21... Kc7 {[%clk
0:01:52.2]} 22. f4 {[%clk 0:01:40.3]} 22... Ned7 {[%clk 0:01:48.8]} 23. Kf3
{[%clk 0:01:39.5]} 23... Re8 {[%clk 0:01:25.1]} 24. Bc4 {[%clk 0:01:19.7]} 24...
Re7 {[%clk 0:01:21.5]} 25. a4 {[%clk 0:01:15.2]} 25... a5 {[%clk 0:01:20.3]} 26.
Bd3 {[%clk 0:01:07.4]} 26... Nc5 {[%clk 0:01:17]} 27. b3 {[%clk 0:01:05]} 27...
Nxd3 {[%clk 0:01:15.7]} 28. cxd3 {[%clk 0:01:03.5]} 28... Nd7 {[%clk 0:01:00.6]}
29. Ne4 {[%clk 0:00:54.2]} 29... f5 {[%clk 0:00:57.6]} 30. Nd2 {[%clk
0:00:45.7]} 30... Nc5 {[%clk 0:00:56.9]} 31. d4 {[%clk 0:00:46.1]} 31... Ne4
{[%clk 0:00:55.1]} 32. Nxe4 {[%clk 0:00:46.3]} 32... Rxe4 {[%clk 0:00:55.9]} 33.
h4 {[%clk 0:00:44.8]} 33... Kd6 {[%clk 0:00:54.2]} 34. h5 {[%clk 0:00:45]} 34...
b6 {[%clk 0:00:47.4]} 35. hxg6 {[%clk 0:00:43.9]} 35... hxg6 {[%clk 0:00:48.3]}
36. Rg1 {[%clk 0:00:43.6]} 36... Re6 {[%clk 0:00:48.7]} 37. Rd1 {[%clk
0:00:36.1]} 37... Kd5 {[%clk 0:00:48.4]} 38. Rc1 {[%clk 0:00:34.1]} 38... Re4
{[%clk 0:00:47.2]} 39. Rh1 {[%clk 0:00:30.5]} 39... Re6 {[%clk 0:00:46.9]} 40.
Rh8 {[%clk 0:00:30.4]} 40... c5 {[%clk 0:00:35.8]} 41. Rd8+ {[%clk 0:00:29.2]}
41... Kc6 {[%clk 0:00:34.8]} 42. dxc5 {[%clk 0:00:27.3]} 42... Kxc5 {[%clk
0:00:34.5]} 43. Rd4 {[%clk 0:00:25]} 43... Rf6 {[%clk 0:00:26.4]} 44. Ke2 {[%clk
0:00:25.1]} 44... Re6 {[%clk 0:00:23.1]} 45. Kd3 {[%clk 0:00:25.3]} 45... Rf6
{[%clk 0:00:21]} 46. Rc4+ {[%clk 0:00:25.7]} 46... Kd6 {[%clk 0:00:20.8]} 47.
Rc8 {[%clk 0:00:25.7]} 47... Re6 {[%clk 0:00:20.4]} 48. Rb8 {[%clk 0:00:26.1]}
48... Kc5 {[%clk 0:00:20.2]} 49. Rc8+ {[%clk 0:00:18.5]} 49... Rc6 {[%clk
0:00:19.7]} 50. Rxc6+ {[%clk 0:00:18.2]} 50... Kxc6 {[%clk 0:00:20.6]} 51. Kc4
{[%clk 0:00:18.8]} 51... b5+ {[%clk 0:00:15]} 52. axb5+ {[%clk 0:00:18.8]} 52...
Kb6 {[%clk 0:00:15.5]} 53. b4 {[%clk 0:00:17.9]} 53... a4 {[%clk 0:00:14.3]} 54.
Kc3 {[%clk 0:00:13.3]} 54... Kxb5 {[%clk 0:00:14.5]} 55. Kb2 {[%clk 0:00:12.9]}
55... Kxb4 {[%clk 0:00:14.6]} 56. Ka2 {[%clk 0:00:13.5]} 56... a3 {[%clk
0:00:10.7]} 57. Ka1 {[%clk 0:00:13.8]} 57... Kc3 {[%clk 0:00:11.1]} 58. Ka2
{[%clk 0:00:14.4]} 58... Kd3 {[%clk 0:00:11.5]} 59. Kxa3 {[%clk 0:00:15.3]}
59... Kxe3 {[%clk 0:00:12]} 60. Kb3 {[%clk 0:00:16.2]} 60... Kxf4 {[%clk
0:00:12.6]} 61. Kc3 {[%clk 0:00:17.1]} 61... Kf3 {[%clk 0:00:13.5]} 62. Kd2
{[%clk 0:00:17.4]} 0-1